{"text_format":"1","workbook":"xlsx","n_sheets":2,"sheets":["Instruções e Configuração","Set 12"],"not_rendered":{"charts":0,"images":0,"macros":1,"external_links":0,"defined_names":13,"comments":0,"pivot_tables":0},"unopened":[],"bounds":{"document_bytes":16777216,"sheet_cells":100000,"rows_first":2000,"rows_last":500,"rows_between":2000,"halvings":0,"cell_chars":16384,"cell_head_chars":4096},"cells_cut":0,"cells_raw":0,"read":"whole","date_system":"1900"}

{"sheet":"Instruções e Configuração","index":0,"n_rows":23,"n_cols":9,"rows_kept":23,"cut":false,"hidden":false,"merged":[[11,7,11,8],[4,7,4,8],[6,7,6,8],[8,7,8,8],[10,7,10,8],[3,2,3,4],[5,2,5,4],[7,2,7,4],[9,2,9,4],[3,7,3,8],[5,7,5,8],[7,7,7,8],[9,7,9,8]]}
[]
[null,"Instruções e Configuração"]
[]
[null,1,"Na tabela Aulas abaixo, escreva os nomes das aulas que pretende controlar neste horário.",null,null,null,5,"Introduza uma data de início para o horário na célula A5."]
[]
[null,2,"Na tabela Atividades, também abaixo, modifique as atividades de exemplo em função das suas necessidades. ",null,null,null,6,"Na linha 4, utilize a lista pendente para adicionar as aulas ao horário. "]
[]
[null,3,"Na célula I14, defina o número de linhas que pretende utilizar para as atividades de trabalho de casa de cada dia.",null,null,null,7,"Abaixo de cada aula, adicione os trabalhos na coluna Trabalhos."]
[]
[null,4,"Numa folha de horário, como Set 12, conclua os passos de 5 a 9.",null,null,null,8,"Estime o total de horas necessárias para cada trabalho na coluna de horas, identificada com um ícone de relógio."]
[]
[null,null,null,null,null,null,9,"Quando o trabalho estiver concluído, faça duplo clique na coluna Concluído, identificada com uma marca de verificação, junto ao trabalho."]
[]
[null,null,"Aulas",null,"Atividades",null,null,"Número de linhas para cada dia:",5]
[null,null,"Introdução à Matemática",null,"Debate"]
[null,null,"Inglês - Nível 5",null,"Laboratório"]
[null,null,"Francês - Nível 3",null,"Conferência"]
[null,null,"Introdução às Ciências",null,"Teste"]
[null,null,"Introdução à História",null,"Leitura"]
[null,null,null,null,"Reflexão"]
[null,null,null,null,"Trabalho de Investigação"]
[null,null,null,null,"Rever Trabalho"]
[null,null,null,null,"Estudo"]

{"sheet":"Set 12","index":1,"n_rows":103,"n_cols":24,"rows_kept":103,"cut":false,"hidden":false,"merged":[]}
[]
[null,"Trabalho de Casa"]
[]
[null,"Introduzir\nData de Início","Total"," Aula:",null,"Introdução à Matemática"," Aula:",null,"Inglês - Nível 5"," Aula:",null,"Francês - Nível 3"," Aula:",null,"Introdução às Ciências"," Aula:",null,null," Aula:",null,null," Aula:"]
[null,"2011-09-12",null,null,null,"TRABALHO",null,null,"TRABALHO",null,null,"TRABALHO",null,null,"TRABALHO",null,null,"TRABALHO",null,null,"TRABALHO",null,null,"TRABALHO"]
[]
[null,{"$f":"HorárioDia","v":"2011-09-12"},{"$f":"TotaisHoráriosPorDia","v":6.5},1,1.5,"Leitura",1,2,"Estudo",null,1,"Leitura",1,1,"Teste"]
[null,{"$f":"HorárioDia","v":""},{"$f":"TotaisHoráriosPorDia","v":""},1,1,"Rever Trabalho"]
[null,{"$f":"HorárioDia","v":""},{"$f":"TotaisHoráriosPorDia","v":""}]
[null,{"$f":"HorárioDia","v":""},{"$f":"TotaisHoráriosPorDia","v":""}]
[null,{"$f":"HorárioDia","v":""},{"$f":"TotaisHoráriosPorDia","v":""}]
[null,{"$f":"HorárioDia","v":"2011-09-13"},{"$f":"TotaisHoráriosPorDia","v":0}]
[null,{"$f":"HorárioDia","v":""},{"$f":"TotaisHoráriosPorDia","v":""}]
[null,{"$f":"HorárioDia","v":""},{"$f":"TotaisHoráriosPorDia","v":""}]
[null,{"$f":"HorárioDia","v":""},{"$f":"TotaisHoráriosPorDia","v":""}]
[null,{"$f":"HorárioDia","v":""},{"$f":"TotaisHoráriosPorDia","v":""}]
[null,{"$f":"HorárioDia","v":"2011-09-14"},{"$f":"TotaisHoráriosPorDia","v":0}]
[null,{"$f":"HorárioDia","v":""},{"$f":"TotaisHoráriosPorDia","v":""}]
[null,{"$f":"HorárioDia","v":""},{"$f":"TotaisHoráriosPorDia","v":""}]
[null,{"$f":"HorárioDia","v":""},{"$f":"TotaisHoráriosPorDia","v":""}]
[null,{"$f":"HorárioDia","v":""},{"$f":"TotaisHoráriosPorDia","v":""}]
[null,{"$f":"HorárioDia","v":"2011-09-15"},{"$f":"TotaisHoráriosPorDia","v":0}]
[null,{"$f":"HorárioDia","v":""},{"$f":"TotaisHoráriosPorDia","v":""}]
[null,{"$f":"HorárioDia","v":""},{"$f":"TotaisHoráriosPorDia","v":""}]
[null,{"$f":"HorárioDia","v":""},{"$f":"TotaisHoráriosPorDia","v":""}]
[null,{"$f":"HorárioDia","v":""},{"$f":"TotaisHoráriosPorDia","v":""}]
[null,{"$f":"HorárioDia","v":"2011-09-16"},{"$f":"TotaisHoráriosPorDia","v":0}]
[null,{"$f":"HorárioDia","v":""},{"$f":"TotaisHoráriosPorDia","v":""}]
[null,{"$f":"HorárioDia","v":""},{"$f":"TotaisHoráriosPorDia","v":""}]
[null,{"$f":"HorárioDia","v":""},{"$f":"TotaisHoráriosPorDia","v":""}]
[null,{"$f":"HorárioDia","v":""},{"$f":"TotaisHoráriosPorDia","v":""}]
[null,{"$f":"HorárioDia","v":"2011-09-17"},{"$f":"TotaisHoráriosPorDia","v":0}]
[null,{"$f":"HorárioDia","v":""},{"$f":"TotaisHoráriosPorDia","v":""}]
[null,{"$f":"HorárioDia","v":""},{"$f":"TotaisHoráriosPorDia","v":""}]
[null,{"$f":"HorárioDia","v":""},{"$f":"TotaisHoráriosPorDia","v":""}]
[null,{"$f":"HorárioDia","v":""},{"$f":"TotaisHoráriosPorDia","v":""}]
[null,{"$f":"HorárioDia","v":"2011-09-18"},{"$f":"TotaisHoráriosPorDia","v":0}]
[null,{"$f":"HorárioDia","v":""},{"$f":"TotaisHoráriosPorDia","v":""}]
[null,{"$f":"HorárioDia","v":""},{"$f":"TotaisHoráriosPorDia","v":""}]
[null,{"$f":"HorárioDia","v":""},{"$f":"TotaisHoráriosPorDia","v":""}]
[null,{"$f":"HorárioDia","v":""},{"$f":"TotaisHoráriosPorDia","v":""}]
[null,{"$f":"HorárioDia","v":""},{"$f":"TotaisHoráriosPorDia","v":""}]
[null,{"$f":"HorárioDia","v":""},{"$f":"TotaisHoráriosPorDia","v":""}]
[null,{"$f":"HorárioDia","v":""},{"$f":"TotaisHoráriosPorDia","v":""}]
[null,{"$f":"HorárioDia","v":""},{"$f":"TotaisHoráriosPorDia","v":""}]
[null,{"$f":"HorárioDia","v":""},{"$f":"TotaisHoráriosPorDia","v":""}]
[null,{"$f":"HorárioDia","v":""},{"$f":"TotaisHoráriosPorDia","v":""}]
[null,{"$f":"HorárioDia","v":""},{"$f":"TotaisHoráriosPorDia","v":""}]
[null,{"$f":"HorárioDia","v":""},{"$f":"TotaisHoráriosPorDia","v":""}]
[null,{"$f":"HorárioDia","v":""},{"$f":"TotaisHoráriosPorDia","v":""}]
[null,{"$f":"HorárioDia","v":""},{"$f":"TotaisHoráriosPorDia","v":""}]
[null,{"$f":"HorárioDia","v":""},{"$f":"TotaisHoráriosPorDia","v":""}]
[null,{"$f":"HorárioDia","v":""},{"$f":"TotaisHoráriosPorDia","v":""}]
[null,{"$f":"HorárioDia","v":""},{"$f":"TotaisHoráriosPorDia","v":""}]
[null,{"$f":"HorárioDia","v":""},{"$f":"TotaisHoráriosPorDia","v":""}]
[null,{"$f":"HorárioDia","v":""},{"$f":"TotaisHoráriosPorDia","v":""}]
[null,{"$f":"HorárioDia","v":""},{"$f":"TotaisHoráriosPorDia","v":""}]
[null,{"$f":"HorárioDia","v":""},{"$f":"TotaisHoráriosPorDia","v":""}]
[null,{"$f":"HorárioDia","v":""},{"$f":"TotaisHoráriosPorDia","v":""}]
[null,{"$f":"HorárioDia","v":""},{"$f":"TotaisHoráriosPorDia","v":""}]
[null,{"$f":"HorárioDia","v":""},{"$f":"TotaisHoráriosPorDia","v":""}]
[null,{"$f":"HorárioDia","v":""},{"$f":"TotaisHoráriosPorDia","v":""}]
[null,{"$f":"HorárioDia","v":""},{"$f":"TotaisHoráriosPorDia","v":""}]
[null,{"$f":"HorárioDia","v":""},{"$f":"TotaisHoráriosPorDia","v":""}]
[null,{"$f":"HorárioDia","v":""},{"$f":"TotaisHoráriosPorDia","v":""}]
[null,{"$f":"HorárioDia","v":""},{"$f":"TotaisHoráriosPorDia","v":""}]
[null,{"$f":"HorárioDia","v":""},{"$f":"TotaisHoráriosPorDia","v":""}]
[null,{"$f":"HorárioDia","v":""},{"$f":"TotaisHoráriosPorDia","v":""}]
[null,{"$f":"HorárioDia","v":""},{"$f":"TotaisHoráriosPorDia","v":""}]
[null,{"$f":"HorárioDia","v":""},{"$f":"TotaisHoráriosPorDia","v":""}]
[null,{"$f":"HorárioDia","v":""},{"$f":"TotaisHoráriosPorDia","v":""}]
[null,{"$f":"HorárioDia","v":""},{"$f":"TotaisHoráriosPorDia","v":""}]
[null,{"$f":"HorárioDia","v":""},{"$f":"TotaisHoráriosPorDia","v":""}]
[null,{"$f":"HorárioDia","v":""},{"$f":"TotaisHoráriosPorDia","v":""}]
[null,{"$f":"HorárioDia","v":""},{"$f":"TotaisHoráriosPorDia","v":""}]
[null,{"$f":"HorárioDia","v":""},{"$f":"TotaisHoráriosPorDia","v":""}]
[null,{"$f":"HorárioDia","v":""},{"$f":"TotaisHoráriosPorDia","v":""}]
[null,{"$f":"HorárioDia","v":""},{"$f":"TotaisHoráriosPorDia","v":""}]
[null,{"$f":"HorárioDia","v":""},{"$f":"TotaisHoráriosPorDia","v":""}]
[null,{"$f":"HorárioDia","v":""},{"$f":"TotaisHoráriosPorDia","v":""}]
[null,{"$f":"HorárioDia","v":""},{"$f":"TotaisHoráriosPorDia","v":""}]
[null,{"$f":"HorárioDia","v":""},{"$f":"TotaisHoráriosPorDia","v":""}]
[null,{"$f":"HorárioDia","v":""},{"$f":"TotaisHoráriosPorDia","v":""}]
[null,{"$f":"HorárioDia","v":""},{"$f":"TotaisHoráriosPorDia","v":""}]
[null,{"$f":"HorárioDia","v":""},{"$f":"TotaisHoráriosPorDia","v":""}]
[null,{"$f":"HorárioDia","v":""},{"$f":"TotaisHoráriosPorDia","v":""}]
[null,{"$f":"HorárioDia","v":""},{"$f":"TotaisHoráriosPorDia","v":""}]
[null,{"$f":"HorárioDia","v":""},{"$f":"TotaisHoráriosPorDia","v":""}]
[null,{"$f":"HorárioDia","v":""},{"$f":"TotaisHoráriosPorDia","v":""}]
[null,{"$f":"HorárioDia","v":""},{"$f":"TotaisHoráriosPorDia","v":""}]
[null,{"$f":"HorárioDia","v":""},{"$f":"TotaisHoráriosPorDia","v":""}]
[null,{"$f":"HorárioDia","v":""},{"$f":"TotaisHoráriosPorDia","v":""}]
[null,{"$f":"HorárioDia","v":""},{"$f":"TotaisHoráriosPorDia","v":""}]
[null,{"$f":"HorárioDia","v":""},{"$f":"TotaisHoráriosPorDia","v":""}]
[null,{"$f":"HorárioDia","v":""},{"$f":"TotaisHoráriosPorDia","v":""}]
[null,{"$f":"HorárioDia","v":""},{"$f":"TotaisHoráriosPorDia","v":""}]
[null,{"$f":"HorárioDia","v":""},{"$f":"TotaisHoráriosPorDia","v":""}]
[null,{"$f":"HorárioDia","v":""},{"$f":"TotaisHoráriosPorDia","v":""}]
[null,{"$f":"HorárioDia","v":""},{"$f":"TotaisHoráriosPorDia","v":""}]
[null,{"$f":"HorárioDia","v":""},{"$f":"TotaisHoráriosPorDia","v":""}]
[null,{"$f":"HorárioDia","v":""},{"$f":"TotaisHoráriosPorDia","v":""}]
[null,{"$f":"HorárioDia","v":""},{"$f":"TotaisHoráriosPorDia","v":""}]
[null,{"$f":"HorárioDia","v":""},{"$f":"TotaisHoráriosPorDia","v":""}]